[Event "ETCC Open 2023"]
[Site "Budva"]
[Date "2023.11.13"]
[Round "3.37"]
[White "Anton Guijarro, David"]
[Black "Bjerre, Jonas Buhl"]
[Result "1-0"]
[ECO "D35"]
[WhiteElo "2668"]
[BlackElo "2633"]
[Annotator "TA"]
[PlyCount "141"]
[EventDate "2023.11.10"]
[EventType "team-tourn"]
[EventCountry "MNE"]
[SourceTitle "playchess.com"]
[Source "ChessBase"]
[SourceQuality "1"]
[WhiteTeam "Spain"]
[BlackTeam "Denmark"]
[WhiteTeamCountry "ESP"]
[BlackTeamCountry "DEN"]
[TimeControl "40/5400+30:1800+30"]

{[%evp 17,141,10,14,6,8,6,13,20,18,10,26,11,34,30,34,35,34,25,34,31,40,37,39,50,37,35,29,31,58,61,62,56,53,52,59,55,61,41,39,30,60,41,57,43,56,10,17,14,20,18,32,25,53,40,54,40,41,47,40,40,52,40,42,40,38,39,39,32,32,33,75,40,40,40,40,40,40,40,40,19,25,5,61,61,61,61,61,61,168,40,158,167,337,337,529,492,12822,12824,12831,12832,12832,12832,12831,12832,12835,12832,12837,12837,12838,12838,12839,12839,12839,12840,12840,12841,12841,12840,12841,12841,12841,12842,12843,12844,12844,12845]} 1. d4 {[%emt 0:00:07]} Nf6 {[%emt 0:00:08]} 2. c4 {[%emt 0:00:11]} e6 {[%emt 0:00:05]} 3. Nf3 {[%emt 0:00:17]} d5 {[%emt 0:00:10]} 4. Nc3 {[%emt 0:00:14]} Nbd7 {[%emt 0:00:18]} 5. cxd5 {[%emt 0:00:31]} exd5 {[%emt 0:00:08]} 6. Bf4 {[%emt 0:00:21]} c6 {[%emt 0:00:30]} 7. e3 {[%emt 0:00:19]} Nh5 {[%emt 0:01:40]} 8. Bg5 {[%emt 0:00:17]} Be7 {[%emt 0:00:23]} 9. Bxe7 {[%emt 0:00:10]} Qxe7 {[%emt 0:00:08]} 10. Be2 {[%emt 0:00:11] D35: Queen's Gambit Declined: Exchange Variation.} g6 {[%emt 0:02:15]} 11. O-O {[%emt 0:00:43]} O-O {[%emt 0:00:40]} 12. Re1 {[%emt 0:00:52] The position is equal.} Ng7 {[%emt 0:03:49] [#]} 13. a3 $146 {[%emt 0:00:41]} ({Predecessor:} 13. Qb3 Nf6 14. Ne5 Re8 15. Rac1 Bf5 16. f3 Rab8 17. Bf1 Nd7 18. Nxd7 Qxd7 19. Qd1 {½-½ Jensen,E (2510)-Kubicki,T (2429) ICCF GMN/037 email 2013}) 13... a5 {[%emt 0:02:42]} 14. Qd2 {[%emt 0:00:19][%cal Ob2b4]} Nf6 {[%emt 0:11:40]} 15. Ne5 {[%emt 0:03:17]} Bf5 {[%emt 0:02:15]} 16. f3 {[%emt 0:03:32]} Nd7 {[%emt 0:12:05]} 17. Nxd7 {[%emt 0:02:58]} Bxd7 {[%emt 0:04:14]} 18. Na4 {[%emt 0:05:39]} Rfe8 {[%emt 0:02:49]} 19. Bf1 {[%emt 0:05:58]} Qd6 {[%emt 0:05:53]} 20. Nb6 {[%emt 0:06:59]} Ra7 {[%emt 0:00:41]} 21. b4 {[%emt 0:02:09]} axb4 {[%emt 0:08:10]} 22. Qxb4 {[%emt 0:00:35]} Qxb4 {[%emt 0:07:46]} 23. axb4 {[%emt 0:00:21]} Rxa1 {[%emt 0:00:07]} 24. Rxa1 {[%emt 0:00:04]} Be6 {[%emt 0:00:33]} 25. Kf2 {[%emt 0:15:38]} Nf5 {[%emt 0:00:43]} 26. b5 {[%emt 0:08:44]} Rb8 {[%emt 0:06:15]} 27. Rc1 {[%emt 0:05:59]} Ne7 {[%emt 0:01:41]} 28. g4 {[%emt 0:02:54]} f5 {[%emt 0:06:13]} 29. h3 {[%emt 0:04:19]} Rf8 {[%emt 0:02:03]} 30. Kg3 {[%emt 0:01:01]} g5 {[%emt 0:01:19]} 31. Bd3 {[%emt 0:01:28]} (31. Na4 $14 {feels stronger.}) 31... f4+ {[%emt 0:04:04]} 32. Kf2 {[%emt 0:01:39]} fxe3+ {[%emt 0:03:21]} 33. Kxe3 {[%emt 0:00:06]} Rf6 {[%emt 0:03:31]} 34. bxc6 {[%emt 0:11:54]} bxc6 {[%emt 0:00:04]} 35. Ra1 {[%emt 0:01:53]} h5 {[%emt 0:03:57]} 36. Ra7 {[%emt 0:04:15]} (36. gxh5 Rh6 $11) 36... Kf7 {[%emt 0:00:30]} 37. Na4 {[%emt 0:06:34]} hxg4 {[%emt 0:01:17]} 38. hxg4 {[%emt 0:00:12]} Rh6 {[%emt 0:01:00]} 39. Nc5 {[%emt 0:00:11]} Rh3 {[%emt 0:01:28]} 40. Kf2 {[%emt 0:04:15]} Rh1 {[%emt 0:02:24]} 41. Bg6+ {[%emt 0:08:47][%mdl 64] Deflection} Kf6 $1 {[%emt 0:01:30]} 42. Be8 {[%emt 0:00:08][%cal Of3f4]} Rh2+ {[%emt 0:11:23]} 43. Ke3 {[%emt 0:00:49]} Rh8 {[%emt 0:01:16]} 44. Bd7 {[%emt 0:10:46] White has more active pieces.} Bxd7 {[%emt 0:00:29]} 45. Nxd7+ $14 {[%emt 0:00:05][%mdl 4096] Endgame KRN-KRN} Ke6 {[%emt 0:00:15]} 46. Ne5 {[%emt 0:00:20][%cal Oa7e7] And now Rxe7+! would win.} Rc8 {[%emt 0:01:48]} 47. Ra1 {[%emt 0:05:06]} Rh8 {[%emt 0:03:06] Against Rh1} 48. Rc1 {[%emt 0:03:57]} Kf6 {[%emt 0:01:22]} 49. Rc2 {[%emt 0:00:24]} Rh1 {[%emt 0:01:51]} (49... Ra8 $11) 50. Nxc6 {[%emt 0:01:23]} Ng6 {[%emt 0:00:25]} 51. Nb4 {[%emt 0:00:42]} Nf4 {[%emt 0:01:39]} 52. Nd3 $1 {[%emt 0:00:48] Against Re1+} Ne6 {[%emt 0:00:46] Black is now going downhill.} (52... Nxd3 $14 53. Kxd3 Rd1+ 54. Ke3 Re1+ 55. Kd2 Ra1) 53. Rc1 {[%emt 0:01:26]} (53. Ra2 $1 $18 {[%cal Ra2a5]}) 53... Rh2 {[%emt 0:01:40]} (53... Rxc1 $14 54. Nxc1 Kg6) 54. Ra1 $1 $16 {[%emt 0:00:24] Ra5 is the strong threat.} ({Don't do} 54. Nb4 $6 Nf4 55. Rc6+ Kg7 $11) 54... Rc2 $2 {[%emt 0:01:33]} (54... Nc7 55. Ra7 Rh7) 55. Ra5 $1 $18 {[%emt 0:01:31]} Rc3 {[%emt 0:01:34]} (55... Nc7 $142 56. Nb4 Rc3+ 57. Ke2 Ke6) 56. Rxd5 {[%emt 0:00:30] White is clearly winning.} Nf4 {[%emt 0:00:31]} (56... Rc4 $142 57. Rf5+ Ke7) 57. Rf5+ {[%emt 0:00:07]} Ke6 {[%emt 0:00:45]} 58. Rxf4 $1 {[%emt 0:00:27]} ({Stronger than} 58. Rxg5 Nxd3 59. d5+ Kd6 $11) ({Worse is} 58. Re5+ Kd6 $11) 58... gxf4+ {[%emt 0:00:08] KR-KN} 59. Ke4 $1 {[%emt 0:00:03]} Kf6 {[%emt 0:00:18]} 60. Nxf4 {[%emt 0:00:12]} Rc4 {[%emt 0:00:09]} 61. Nd5+ {[%emt 0:00:20]} Ke6 {[%emt 0:00:56]} 62. f4 {[%emt 0:00:20][%cal Bf3f4,Bf4f5][%mdl 32]} Rc1 {[%emt 0:00:07]} 63. g5 {[%emt 0:01:26][%cal Bg4g5,Bg5g6][%mdl 32]} Rg1 {[%emt 0:00:46]} 64. f5+ {[%emt 0:01:16]} Kf7 {[%emt 0:00:43] [#]} 65. g6+ $1 {[%emt 0:00:07]} Kg7 {[%emt 0:00:10] [#]} 66. Ne3 $1 {[%emt 0:00:34]} Ra1 {[%emt 0:01:33]} 67. Ke5 {[%emt 0:00:58]} Ra3 {[%emt 0:01:41]} 68. Ng4 {[%emt 0:00:30]} Ra4 {[%emt 0:00:10]} 69. Nf6 {[%emt 0:00:38]} Ra7 {[%emt 0:00:35]} 70. Nh5+ {[%emt 0:00:35]} Kh6 {[%emt 0:00:18]} 71. Nf4 {[%emt 0:00:30] Weighted Error Value: White=0.10 (very precise) /Black=0.18 (very precise)} 1-0

[Event "ETCC Open 2023"]
[Site "Budva"]
[Date "2023.11.13"]
[Round "3.38"]
[White "Andersen, Mads"]
[Black "Santos Latasa, Jaime"]
[Result "0-1"]
[ECO "C02"]
[WhiteElo "2612"]
[BlackElo "2635"]
[Annotator "TA"]
[PlyCount "76"]
[EventDate "2023.11.10"]
[EventType "team-tourn"]
[EventCountry "MNE"]
[SourceTitle "playchess.com"]
[Source "ChessBase"]
[SourceQuality "1"]
[WhiteTeam "Denmark"]
[BlackTeam "Spain"]
[WhiteTeamCountry "DEN"]
[BlackTeamCountry "ESP"]
[TimeControl "40/5400+30:1800+30"]

{[%evp 17,76,14,18,20,21,8,0,7,2,2,17,0,37,34,37,37,48,39,43,37,54,52,50,1,3,0,23,18,41,28,31,17,47,-4,35,33,36,0,-9,-81,0,-110,-105,-114,-91,-98,-126,-202,-184,-518,-508,-441,-462,-827,-826,-791,-787,-1656,-1704,-1165,-1152]} 1. e4 {[%emt 0:00:04]} e6 {[%emt 0:00:10]} 2. d4 {[%emt 0:00:16]} d5 {[%emt 0:00:05]} 3. e5 {[%emt 0:00:11]} c5 {[%emt 0:00:06]} 4. c3 {[%emt 0:00:08]} Nc6 {[%emt 0:00:04]} 5. Nf3 {[%emt 0:00:09]} Qb6 {[%emt 0:00:05]} 6. a3 {[%emt 0:00:18]} Bd7 {[%emt 0:00:12]} 7. b4 {[%emt 0:02:15]} cxd4 {[%emt 0:00:17]} 8. cxd4 {[%emt 0:00:08]} Rc8 {[%emt 0:00:05]} 9. Be3 {[%emt 0:01:39]} Nh6 {[%emt 0:00:31]} 10. Bd3 {[%emt 0:01:13] C02: French: Advance Variation.} Ng4 {[%emt 0:00:38]} 11. Nbd2 {[%emt 0:01:57]} Nxe3 {[%emt 0:03:57]} 12. fxe3 {[%emt 0:00:03] [#] The position is equal.} Nd8 $146 {[%emt 0:04:21]} ({Predecessor:} 12... Be7 13. Nb3 Nb8 14. Qe2 a6 15. Nc5 Bb5 16. Bxb5+ axb5 17. O-O O-O 18. a4 bxa4 19. Rxa4 {½-½ Grandelius,N (2662)-Bluebaum,M (2640) POL-chT Ekstraliga 2021 (5.2)}) 13. Qe2 {[%emt 0:12:06]} Rc3 {[%emt 0:00:46] Dodges Nb3} 14. Kf2 {[%emt 0:07:12]} Qc7 {[%emt 0:18:54]} 15. Nb1 {[%emt 0:06:19]} Rc1 {[%emt 0:00:33]} 16. Rxc1 {[%emt 0:01:00]} Qxc1 {[%emt 0:00:11]} 17. Ra2 {[%emt 0:09:12]} Ba4 {[%emt 0:09:57]} 18. b5 {[%emt 0:24:41]} Be7 {[%emt 0:17:19]} 19. Qd2 {[%emt 0:07:08]} Qc7 {[%emt 0:02:48]} 20. Qc3 {[%emt 0:03:24]} (20. Rb2 $14) 20... Qd7 $1 $11 {[%emt 0:04:12]} 21. Qa5 {[%emt 0:02:04][%csl LRa4,LRa7]} Bd1 {[%emt 0:00:35]} 22. Qxa7 {[%emt 0:00:26]} Bxf3 {[%emt 0:01:03]} 23. gxf3 {[%emt 0:00:13]} (23. Kxf3 f6 24. Nd2 fxe5 25. dxe5 Qc7 $11) 23... f6 {[%emt 0:00:06]} 24. Rc2 {[%emt 0:04:44]} O-O {[%emt 0:01:18]} 25. Nd2 {[%emt 0:00:31]} ({White should play} 25. exf6 $14 Rxf6 26. Nd2) 25... Nf7 {[%emt 0:04:10]} (25... fxe5 {is more complex.} 26. dxe5 Qe8 27. Qd4 Qh5) 26. exf6 {[%emt 0:01:10]} Bxf6 {[%emt 0:00:18]} 27. Kg2 {[%emt 0:07:23]} (27. Qc5 $5 {[%cal Rd3h7]} Rd8 28. Qc7 $14) 27... e5 {[%emt 0:01:17][%cal Be6e5,Be5d4,Bd4d3][%mdl 32]} 28. Qc5 {[%emt 0:01:31]} (28. dxe5 $1 $11 Nxe5 29. Be2) 28... Ng5 {[%emt 0:02:48]} (28... exd4 $17 {White must now prevent ...Ne5.} 29. Kh1 dxe3 30. Qxe3 Re8) 29. Kh1 {[%emt 0:00:57]} (29. dxe5 $1 $11 {keeps the balance.} Bxe5 30. Kh1) 29... exd4 $17 {[%emt 0:01:04]} 30. e4 {[%emt 0:01:02]} Nh3 $1 {[%emt 0:01:42] aiming for ...Nf2+.} 31. Bf1 {[%emt 0:00:34] [#]} (31. exd5 $2 Nf2+ 32. Kg1 Nxd3 $19) (31. Qxd5+ $2 Qxd5 32. exd5 Nf2+ 33. Kg1 Nxd3 $19) 31... Nf2+ $1 {[%emt 0:12:38]} 32. Kg1 {[%emt 0:00:01]} d3 {[%emt 0:00:08]} 33. Ra2 {[%emt 0:01:17] [#]} (33. Rc1 {was the crucial defense.} dxe4 34. Qc4+ (34. Kxf2 $2 {is the wrong capture.} Bd4+ 35. Ke1 Bxc5 $19) 34... Kh8 35. Kxf2 exf3 36. Qxd3 (36. Bxd3 $2 Qh3 $19)) 33... dxe4 $1 $19 {[%emt 0:01:07] Black is clearly winning.} 34. Qc4+ {[%emt 0:00:46]} Kh8 {[%emt 0:00:10] White is weak on the dark squares} 35. Kxf2 {[%emt 0:00:38]} ({Not} 35. Qc5 $2 Rc8 36. Qb4 e3) (35. Nxe4 $142 Nxe4 36. Qxd3) 35... Bd4+ {[%emt 0:00:07]} 36. Ke1 {[%emt 0:01:31]} Rc8 {[%emt 0:00:13]} (36... exf3 37. Kd1 $17) 37. fxe4 {[%emt 0:01:11]} Rxc4 {[%emt 0:00:09]} 38. Nxc4 {[%emt 0:00:01]} Bc3+ {[%emt 0:00:14] Weighted Error Value: White=0.57/Black=0.09 (flawless)} 0-1

[Event "ETCC Open 2023"]
[Site "Budva"]
[Date "2023.11.13"]
[Round "3.39"]
[White "Shirov, Alexei"]
[Black "Thybo, Jesper Sondergaard"]
[Result "1/2-1/2"]
[ECO "C50"]
[WhiteElo "2668"]
[BlackElo "2522"]
[Annotator "TA"]
[PlyCount "85"]
[EventDate "2023.11.10"]
[EventType "team-tourn"]
[EventCountry "MNE"]
[SourceTitle "playchess.com"]
[Source "ChessBase"]
[SourceQuality "1"]
[WhiteTeam "Spain"]
[BlackTeam "Denmark"]
[WhiteTeamCountry "ESP"]
[BlackTeamCountry "DEN"]
[TimeControl "40/5400+30:1800+30"]

{[%evp 10,85,21,18,22,25,29,22,25,-6,20,26,23,0,0,14,0,0,0,5,6,5,8,10,16,9,11,0,0,0,0,0,8,0,6,0,0,0,0,0,0,-19,0,0,0,-5,-5,-2,0,-1,0,0,0,0,0,0,0,-7,8,0,0,0,0,0,0,0,0,0,0,0,0,0,0,0,0,0,0,0]} 1. e4 {[%emt 0:00:03]} e5 {[%emt 0:00:09]} 2. Nf3 {[%emt 0:00:05]} Nc6 {[%emt 0:00:07]} 3. Bc4 {[%emt 0:00:07]} Bc5 {[%emt 0:00:22]} 4. d3 {[%emt 0:00:12]} Nf6 {[%emt 0:00:29]} 5. Bg5 {[%emt 0:00:09][%cal Bc1g5,Bg5h4,Bh4g3][%mdl 32]} h6 {[%emt 0:01:52]} 6. Bh4 {[%emt 0:00:08]} O-O {[%emt 0:04:57] C50: Hungarian Defence and Giuoco Pianissimo.} 7. a4 {[%emt 0:04:10]} Be7 {[%emt 0:05:15]} 8. Bg3 {[%emt 0:00:25]} d6 {[%emt 0:00:55]} 9. Nc3 {[%emt 0:30:53]} Be6 {[%emt 0:09:19]} (9... Bg4 $5 {[%cal Rc6d4]}) 10. Bxe6 {[%emt 0:00:36]} fxe6 {[%emt 0:00:07] [#]} 11. a5 $146 {[%emt 0:00:53]} ({Predecessor:} 11. O-O Qd7 12. a5 a6 13. Ra4 Nd8 14. Ra3 Nh5 15. Rb3 Nxg3 16. hxg3 c5 17. Qd2 {1-0 Annaberdiev,M (2509)-Simantsev,M (2403) Marmaris Physkos 2018 (5)}) 11... a6 {[%emt 0:02:40] The position is equal.} 12. O-O {[%emt 0:00:38]} Qe8 {[%emt 0:04:51]} 13. d4 {[%emt 0:07:25][%cal Rd4e5]} exd4 {[%emt 0:02:40]} 14. Nxd4 {[%emt 0:00:04]} Nxd4 {[%emt 0:02:20]} 15. Qxd4 {[%emt 0:00:06]} Nh5 {[%emt 0:01:04]} 16. Qc4 {[%emt 0:01:45][%csl LRc7,LRe6]} Qd7 {[%emt 0:01:23]} 17. Nd5 {[%emt 0:00:40]} Bd8 {[%emt 0:04:35]} 18. Ne3 {[%emt 0:00:04]} c6 {[%emt 0:05:26]} 19. b4 {[%emt 0:01:14]} d5 {[%emt 0:01:28]} 20. Qb3 {[%emt 0:00:56]} Bg5 {[%emt 0:05:43]} 21. Rad1 {[%emt 0:01:43]} Rad8 {[%emt 0:02:51]} 22. Ng4 {[%emt 0:03:28]} Qf7 {[%emt 0:02:55]} 23. Rde1 {[%emt 0:21:59]} Nxg3 {[%emt 0:02:49]} 24. hxg3 {[%emt 0:01:21]} Qh5 {[%emt 0:01:38]} 25. f3 {[%emt 0:07:51]} Be7 {[%emt 0:02:17]} 26. exd5 {[%emt 0:03:44]} Qxd5 {[%emt 0:00:33]} 27. c4 {[%emt 0:00:26]} Qd3 {[%emt 0:06:52]} 28. Qxd3 {[%emt 0:00:14]} Rxd3 {[%emt 0:00:05][%cal Bd8d3,Bd3b3,Bb3b4,Bb4d4][%mdl 32]} 29. c5 {[%emt 0:00:17]} h5 {[%emt 0:02:29]} 30. Nf2 {[%emt 0:04:28]} Rb3 {[%emt 0:00:37]} 31. Rxe6 {[%emt 0:00:16]} Bf6 {[%emt 0:00:36]} 32. Ne4 {[%emt 0:03:20]} Rxb4 {[%emt 0:01:41]} 33. Rd1 {[%emt 0:02:41]} Rd4 {[%emt 0:08:39] Prevents Rd7} 34. Nxf6+ {[%emt 0:01:28]} Rxf6 $11 {[%emt 0:00:08][%mdl 4096] Endgame KRR-KRR} 35. Re8+ {[%emt 0:00:02]} Kf7 {[%emt 0:00:13]} 36. Rxd4 {[%emt 0:02:50]} Kxe8 {[%emt 0:00:04] KR-KR} 37. g4 {[%emt 0:00:04]} hxg4 {[%emt 0:03:42]} 38. Rxg4 {[%emt 0:00:05]} Kf8 {[%emt 0:01:01]} 39. Kf2 {[%emt 0:01:17]} Rf5 {[%emt 0:00:54]} 40. Rc4 {[%emt 0:00:04]} Rd5 {[%emt 0:00:51]} 41. Ke2 {[%emt 0:07:00]} Kf7 {[%emt 0:00:52]} 42. f4 {[%emt 0:02:48]} g5 {[%emt 0:03:17]} 43. Kf3 {[%emt 0:09:03] An interesting draw.   Weighted Error Value: White=0.04 (flawless) /Black=0.03 (flawless)} 1/2-1/2

[Event "ETCC Open 2023"]
[Site "Budva"]
[Date "2023.11.13"]
[Round "3.40"]
[White "Rasmussen, Allan Stig"]
[Black "Yuffa, Daniil"]
[Result "1-0"]
[ECO "A26"]
[WhiteElo "2507"]
[BlackElo "2600"]
[Annotator "TA"]
[PlyCount "85"]
[EventDate "2023.11.10"]
[EventType "team-tourn"]
[EventCountry "MNE"]
[SourceTitle "playchess.com"]
[Source "ChessBase"]
[SourceQuality "1"]
[WhiteTeam "Denmark"]
[BlackTeam "Spain"]
[WhiteTeamCountry "DEN"]
[BlackTeamCountry "ESP"]
[TimeControl "40/5400+30:1800+30"]

{[%evp 16,85,6,0,27,29,25,18,9,11,18,13,23,25,18,7,14,10,7,0,0,0,0,0,44,35,36,46,60,27,29,29,32,0,-6,0,0,0,0,0,43,9,8,8,14,4,6,25,114,128,265,264,467,291,274,151,116,128,143,56,250,249,1008,979,2297,1334,4798,1670,29987,29988,29988,29989]} 1. c4 {[%emt 0:00:05]} e5 {[%emt 0:00:24]} 2. g3 {[%emt 0:00:10]} Nc6 {[%emt 0:02:09]} 3. Bg2 {[%emt 0:00:23]} g6 {[%emt 0:00:10]} 4. Nc3 {[%emt 0:00:21]} Bg7 {[%emt 0:00:09]} 5. d3 {[%emt 0:03:39]} d6 {[%emt 0:01:56]} 6. Nf3 {[%emt 0:06:27]} Nge7 {[%emt 0:01:28]} 7. O-O {[%emt 0:01:15]} O-O {[%emt 0:02:33]} 8. Rb1 {[%emt 0:05:12]} a5 {[%emt 0:00:26]} 9. a3 {[%emt 0:00:59][%cal Ba2a3,Ba3b4,Bb4b5][%mdl 32] [#]} Re8 $146 {[%emt 1:25:45] A26: English Opening vs King's Indian with ...Nc6 and d3.} ({Predecessor:} 9... Nd4 10. b4 axb4 11. axb4 Bg4 12. Nd2 Qc8 13. Re1 c6 14. b5 h6 15. bxc6 bxc6 16. Nb3 Qd7 17. Bd2 Kh7 18. Nxd4 exd4 19. Na4 {1-0 Kramnik,V (2753)-Alekseenko,K (2686) Airthings Masters Play In rapid 2023 (3)}) 10. Nd2 {[%emt 0:06:56]} Nd4 {[%emt 0:00:00]} 11. b4 {[%emt 1:10:33]} axb4 {[%emt 0:00:00] The position is equal.} 12. axb4 {[%emt 0:00:00]} c6 {[%emt 0:00:00]} 13. e3 {[%emt 0:00:00]} Ne6 {[%emt 0:00:00]} 14. Qb3 {[%emt 0:00:00]} Nc7 {[%emt 0:00:00]} 15. b5 {[%emt 0:00:00]} Bf5 {[%emt 0:00:00]} 16. Nde4 {[%emt 0:00:00]} d5 {[%emt 0:00:00]} 17. Nc5 {[%emt 0:00:00]} dxc4 {[%emt 0:00:00]} 18. dxc4 {[%emt 0:00:00]} Bxb1 {[%emt 0:00:00]} 19. Qxb1 {[%emt 0:00:00]} Rb8 {[%emt 0:00:00]} 20. Rd1 {[%emt 0:00:00]} Qc8 {[%emt 0:00:00]} 21. Nd7 {[%emt 0:00:00] aiming for Ba3.} Ncd5 $1 {[%emt 0:00:00]} 22. cxd5 {[%emt 0:00:00]} Qxd7 {[%emt 0:00:00]} 23. dxc6 {[%emt 0:00:00]} Qc8 {[%emt 0:00:00][%cal Rb7c6]} 24. Ne4 {[%emt 0:00:00]} (24. Ba3 {simplifies} bxc6 25. Bxe7 Rxe7 26. Bxc6 Re6 27. Qe4) 24... bxc6 {[%emt 0:00:00]} 25. Nd6 {[%emt 0:00:00][%csl LRc8,LRe8]} Qg4 {[%emt 0:00:00]} 26. Qb3 {[%emt 0:00:00]} Rf8 {[%emt 0:00:00]} 27. h3 $36 {[%emt 0:00:00][%mdl 2048] Black is under pressure.} Qh5 {[%emt 0:00:00]} (27... Qd7 $5 {[%cal Rd7a7]}) 28. g4 {[%emt 0:01:02]} Qh4 {[%emt 0:00:00]} 29. b6 {[%emt 0:02:01] Ba3 would be deadly.} h5 {[%emt 0:00:04]} 30. gxh5 {[%emt 0:01:29]} Qxh5 {[%emt 0:00:20][%cal Ob8b6] Threatens to win with ...Rxb6!} 31. b7 {[%emt 0:00:32] Ba3 is the strong threat.} e4 {[%emt 0:04:16]} 32. Ba3 $16 {[%emt 0:01:40] White is more active.} (32. Nxe4 $2 Rxb7 33. Qc2 Ra8 $19) (32. Bxe4 Nf5 33. Ba3 (33. Bxc6 Rfd8 $11) 33... Be5) 32... Nd5 {[%emt 0:00:06] [#]} (32... Rbd8 $2 33. Rb1 $18 (33. Bxe4 Qxh3 34. Rd3 Be5 $14)) (32... Qa5 $16) 33. Rc1 $1 $18 {[%emt 0:00:51]} (33. Nxe4 Rxb7 34. Qxb7 Qxd1+ 35. Bf1 Qe1 $11) 33... Qe2 $2 {[%emt 0:02:51]} (33... Nc7 {was necessary.} 34. Rxc6 (34. Nxe4 Qb5 $16) 34... Qd5 35. Qxd5 (35. Rxc7 $2 Qxb3 36. Nc4 Qb1+ 37. Kh2 Rfe8 $19) 35... Nxd5 36. Bxe4 Nf6) 34. Nxe4 {[%emt 0:01:08]} Qa6 {[%emt 0:01:34]} 35. Nc5 {[%emt 0:01:16]} ({Better is} 35. Nd6 $18) 35... Qa7 $16 {[%emt 0:00:20]} 36. Rc4 {[%emt 0:00:55]} Qa5 {[%emt 0:02:09]} 37. Nd7 {[%emt 0:00:48]} ({White should play} 37. Bxd5 $16 cxd5 38. Ra4 {[%mdl 64] Discovered Attack} Qe1+ 39. Kg2) 37... Nxe3 $2 {[%emt 0:01:16]} 38. fxe3 $18 {[%emt 0:01:03]} Qe1+ $2 {[%emt 0:00:15]} (38... Rxb7 39. Qxb7 Qxa3) 39. Kh2 {[%emt 0:00:15]} Rfd8 {[%emt 0:00:02]} 40. Bd6 {[%emt 0:00:29]} (40. Bxc6 $2 {loses.} Qf2+ 41. Kh1 (41. Bg2 $2 Rxd7 42. Qb5 Rd2 $19) 41... Qf1+ 42. Kh2 Rxd7 43. Bxd7 Be5+ $19) 40... Qd2 {[%emt 0:01:39]} 41. Bxb8 {[%emt 0:09:28]} Rxb8 {[%emt 0:00:15]} 42. Nxb8 {[%emt 0:00:58]} Be5+ {[%emt 0:00:06] [#]} 43. Rf4 $1 {[%emt 0:00:16] A cool game by Rasmussen.   Weighted Error Value: White=0.21 (precise) /Black=0.48} 1-0